bitfinex-derivatives/quotes_BNBF0:USTF0_20250510
["timestamp","ask_amount","ask_price","bid_price","bid_amount"]
[1746865123752,0.24312546,661.53,661.18,0.34]
[1746865123953,0.30233401,661.52,661.18,0.34]
[1746865124752,0.24312546,661.51,661.18,0.34]
[1746865124953,0.5062943,661.51,661.18,0.34]
[1746865125455,0.30234315,661.5,661.18,0.34]
[1746865125654,0.54546861,661.5,661.18,0.34]
[1746865125953,0.24312546,661.49,661.18,0.34]
[1746865126154,0.3023523,661.48,661.18,0.34]
[1746865126956,0.2435921,661.47,661.18,0.34]
[1746865127158,0.30236144,661.46,661.18,0.34]
[1746865127855,0.2435921,661.45,661.18,0.34]
[1746865128057,0.30237058,661.44,661.18,0.34]
[1746865128563,0.2435921,661.43,661.18,0.34]
[1746865128757,0.30237972,661.42,661.18,0.34]
[1746865129252,0.2435921,661.41,661.18,0.34]
[1746865129458,0.30238887,661.4,661.18,0.34]
[1746865131563,0.2435921,661.35,661.18,0.34]
[1746865131761,0.3024163,661.34,661.18,0.34]
[1746865132161,0.2435921,661.33,661.18,0.34]
[1746865132760,0.56570081,661.32,661.18,0.34]
[1746865133263,0.2435921,661.31,661.18,0.34]
[1746865134966,0.30243459,661.3,661.18,0.34]
[1746865135564,0.2435921,661.29,661.18,0.34]
[1746865135768,0.50686845,661.29,661.18,0.34]
[1746865136166,0.2435921,661.28,661.18,0.34]
[1746865137567,0.26327635,661.29,661.18,0.34]
[1746865138263,0.30243459,661.3,661.18,0.34]
[1746865138668,0.26314496,661.29,661.18,0.34]
[1746865141273,0.30243459,661.3,661.18,0.34]
[1746865141669,0.2631569,661.29,661.18,0.34]
[1746865144172,0.24347138,661.28,661.18,0.34]
[1746865147673,0.26324548,661.27,661.18,0.34]
[1746865148276,0.24347138,661.26,661.18,0.34]
[1746865148574,0.30245746,661.25,661.18,0.34]
[1746865148972,0.24347138,661.24,661.18,0.34]
[1746865149276,0.30246661,661.23,661.18,0.34]
[1746865150673,0.24329856,661.22,661.18,0.34]
[1746865150871,0.30247576,661.21,661.18,0.34]
[1746865151370,0.24328995,661.2,661.18,0.34]
[1746865151574,0.30248491,661.19,661.18,0.34]
[1746865152073,0.54577486,661.19,661.18,0.34]
[1746865152470,0.54577486,661.19,661.18,0.07666687]
[1746865152673,0.54577486,661.19,661.17,0.325]
[1746865153073,0.24328995,661.18,661.17,0.325]
[1746865153376,0.54577943,661.18,661.17,0.00568437]
[1746865153869,0.54577943,661.18,661.09,0.30253066]
[1746865154075,0.30249406,661.17,661.07,0.1282227]
[1746865154372,0.24328995,661.16,661.07,0.1282227]
[1746865154575,0.30250321,661.15,661.07,0.1282227]
[1746865155067,0.24328995,661.14,661.07,0.1282227]
[1746865155672,0.26337199,661.13,661.07,0.1282227]
[1746865155974,0.24328995,661.12,661.07,0.1282227]
[1746865156275,0.30252151,661.11,661.07,0.1282227]
[1746865156875,0.50665098,661.1,661.07,0.1282227]
[1746865157173,0.30253066,661.09,661.07,0.1282227]
[1746865157376,0.54582061,661.09,661.07,0.1282227]
[1746865157774,0.24328995,661.08,661.07,0.1282227]
[1746865157974,0.54582519,661.08,661.07,0.1282227]
[1746865162877,0.80920416,661.08,661.07,0.1282227]
[1746865165275,0.54582519,661.08,661.07,0.1282227]
[1746865165578,0.54582519,661.08,661.06,0.16737915]
[1746865166075,0.30253982,661.07,661.06,0.16737915]
[1746865166278,0.54582977,661.07,661.06,0.16737915]
[1746865168579,0.80920974,661.07,661.06,0.16737915]
[1746865171285,0.54582977,661.07,661.06,0.16737915]
[1746865171879,0.24328995,661.07,661.06,0.16737915]
[1746865172184,0.24328995,661.94,661.06,0.16737915]
[1746865172586,0.26326241,661.93,661.06,0.16737915]
[1746865172786,0.50655236,661.93,661.06,0.16737915]
[1746865173179,0.24328995,661.92,661.06,0.16737915]
[1746865173685,0.24328995,661.91,661.06,0.16737915]
[1746865174082,0.24328995,661.9,661.06,0.16737915]
[1746865174286,0.24328995,661.89,661.06,0.16737915]
[1746865174786,0.24328995,661.88,661.06,0.16737915]
[1746865175187,0.24328995,661.87,661.06,0.16737915]
[1746865175587,0.50656033,661.86,661.06,0.16737915]
[1746865176083,0.24328995,661.85,661.06,0.16737915]
[1746865176388,0.24328995,661.84,661.06,0.16737915]
[1746865176788,0.24328995,661.83,661.06,0.16737915]
[1746865177087,0.24328995,661.82,661.06,0.16737915]
[1746865177485,0.24328995,661.85,661.06,0.16737915]
[1746865177787,0.30213762,661.95,661.06,0.16737915]
[1746865177788,0.24328995,661.84,661.06,0.16737915]
[1746865178190,0.24328995,661.83,661.06,0.16737915]
[1746865178488,0.24328995,661.94,661.06,0.16737915]
[1746865179092,0.50655634,661.93,661.06,0.16737915]
[1746865179493,0.24328995,661.92,661.06,0.16737915]
[1746865179789,0.24328995,661.91,661.06,0.16737915]
[1746865180293,0.24328995,661.9,661.06,0.16737915]
[1746865180692,0.30213762,661.95,661.06,0.16737915]
[1746865180693,0.24328995,661.89,661.06,0.16737915]
[1746865180992,0.24328995,661.88,661.06,0.16737915]
[1746865181193,0.50655236,661.88,661.06,0.16737915]
[1746865181494,0.24328995,661.87,661.06,0.16737915]
[1746865181896,0.24328995,661.86,661.06,0.16737915]
[1746865182194,0.24328995,661.85,661.06,0.16737915]
[1746865182494,0.24328995,661.84,661.06,0.16737915]
[1746865182794,0.24328995,661.83,661.06,0.16737915]
[1746865183288,0.24328995,661.82,661.06,0.16737915]
[1746865183693,0.24328995,661.81,661.06,0.16737915]
[1746865184194,0.26328432,661.8,661.06,0.16737915]
[1746865184497,0.24328995,661.79,661.06,0.16737915]
[1746865189002,0.24328995,661.78,661.06,0.16737915]
[1746865189501,0.24328995,661.79,661.06,0.16737915]
[1746865192502,0.24328995,661.94,661.06,0.16737915]
[1746865192802,0.24328995,661.93,661.06,0.16737915]
[1746865193201,0.30213762,661.95,661.06,0.16737915]
[1746865193403,0.24317554,661.94,661.06,0.16737915]
[1746865193804,0.24317554,661.93,661.06,0.16737915]
[1746865194104,0.24317554,661.92,661.06,0.16737915]
[1746865194404,0.24317554,661.91,661.06,0.16737915]
[1746865194806,0.24317554,661.9,661.06,0.16737915]
[1746865195102,0.24317554,661.89,661.06,0.16737915]
[1746865195604,0.24317554,661.88,661.06,0.16737915]
[1746865195805,0.24317554,661.87,661.06,0.16737915]
[1746865196106,0.24317554,661.86,661.06,0.16737915]
[1746865196606,0.24317554,661.85,661.06,0.16737915]
[1746865197012,0.50641804,661.84,661.06,0.16737915]
[1746865197206,0.24317554,661.83,661.06,0.16737915]
[1746865197510,0.24317554,661.82,661.06,0.16737915]
[1746865197812,0.24317554,661.81,661.06,0.16737915]
[1746865198110,0.24317554,661.83,661.06,0.16737915]
[1746865198609,0.24317554,661.82,661.06,0.16737915]
[1746865198803,0.24317554,661.83,661.06,0.16737915]
[1746865200513,0.24317554,661.82,661.06,0.16737915]
[1746865200813,0.24317554,661.83,661.06,0.16737915]
[1746865201114,0.24317554,661.82,661.06,0.16737915]
[1746865201417,0.24317554,661.81,661.06,0.16737915]
[1746865201710,0.50639016,661.81,661.06,0.16737915]
[1746865201909,0.24317554,661.8,661.06,0.16737915]
[1746865202113,0.24317554,661.79,661.06,0.16737915]
[1746865202511,0.24317554,661.78,661.06,0.16737915]
[1746865203115,0.24317554,661.77,661.06,0.16737915]
[1746865203416,0.24317554,661.76,661.06,0.16737915]
[1746865203917,0.24317554,661.75,661.06,0.16737915]
[1746865204317,0.24317554,661.74,661.06,0.16737915]
[1746865204618,0.24317554,661.73,661.06,0.16737915]
[1746865204915,0.24317554,661.72,661.06,0.16737915]
[1746865205219,0.24317554,661.71,661.06,0.16737915]
[1746865205720,0.24317554,661.7,661.06,0.16737915]
[1746865206120,0.24317554,661.69,661.06,0.16737915]
[1746865206921,0.24317554,661.68,661.06,0.16737915]
[1746865207319,0.24317554,661.67,661.06,0.16737915]
[1746865207521,1.94982913,661.89,661.06,0.16737915]
[1746865207822,0.2632186,661.66,661.06,0.16737915]
[1746865208022,1.94982913,661.87,661.06,0.16737915]
[1746865208325,0.24310032,661.86,661.06,0.16737915]
[1746865208623,0.24310032,661.85,661.06,0.16737915]
[1746865208822,0.50634879,661.85,661.06,0.16737915]
[1746865209223,0.24310032,661.84,661.06,0.16737915]
[1746865209525,0.26324847,661.85,661.06,0.16737915]
[1746865209826,0.24307465,661.84,661.06,0.16737915]
[1746865210125,0.26324847,661.85,661.06,0.16737915]
[1746865210421,0.24307657,661.84,661.06,0.16737915]
[1746865210926,0.24307657,661.83,661.06,0.16737915]
[1746865211224,0.26324847,661.85,661.06,0.16737915]
[1746865211225,0.24307657,661.82,661.06,0.16737915]
[1746865211621,0.24307657,661.81,661.06,0.16737915]
[1746865212123,0.24307657,661.84,661.06,0.16737915]
[1746865212323,0.24307657,661.8,661.06,0.16737915]
[1746865212619,0.26324847,661.85,661.06,0.16737915]
[1746865212620,0.24307657,661.84,661.06,0.16737915]
[1746865213726,0.26326241,661.83,661.06,0.16737915]
[1746865213926,0.24307657,661.82,661.06,0.16737915]
[1746865214120,0.24307657,661.82,660.91,0.30261306]
[1746865214425,0.26326241,661.83,660.91,0.30261306]
[1746865214426,0.24307657,661.81,660.95,0.11531415]
[1746865214626,0.24307657,661.8,660.95,0.11531415]
[1746865215026,0.24307657,661.79,660.95,0.11531415]
[1746865215325,0.26326241,661.83,660.95,0.11531415]
[1746865215326,0.24307657,661.78,660.95,0.11531415]
[1746865215728,0.24307657,661.77,660.95,0.11531415]
[1746865216023,0.24307657,661.76,660.95,0.11531415]
[1746865216629,0.24307657,661.75,660.95,0.11531415]
[1746865217028,0.24307657,661.74,660.95,0.11531415]
[1746865217229,1.94982913,661.56,660.95,0.11531415]
[1746865217728,0.24307657,661.55,660.95,0.11531415]
[1746865218231,0.24307657,661.54,660.95,0.11531415]
[1746865218528,0.24307657,661.53,660.95,0.11531415]
[1746865218829,0.24307657,661.52,660.95,0.11531415]
[1746865219130,0.24307657,661.51,660.95,0.11531415]
[1746865219531,0.24307657,661.55,660.95,0.11531415]
[1746865219724,0.24307657,661.6,660.95,0.11531415]
[1746865220732,0.26322856,661.59,660.95,0.11531415]
[1746865221230,0.24307657,661.58,660.95,0.11531415]
[1746865222726,0.24307657,661.94,660.95,0.11531415]
[1746865223631,0.30213762,661.95,660.95,0.11531415]
[1746865223829,0.26318377,661.93,660.95,0.11531415]
[1746865224531,0.24282669,661.92,660.95,0.11531415]
[1746865225631,0.24282669,661.94,660.95,0.11531415]
[1746865225832,0.26318078,661.91,660.95,0.11531415]
[1746865226831,0.24289131,661.9,660.95,0.11531415]
[1746865227333,0.24289131,661.9,660.96,0.279]
[1746865227532,0.26318078,661.91,660.96,0.279]
[1746865227832,0.24290191,661.9,660.96,0.279]
[1746865228134,0.24290191,661.89,660.96,0.279]
[1746865228431,0.24290191,661.9,660.96,0.279]
[1746865228728,0.24290191,661.89,660.96,0.279]
[1746865229033,0.24290191,661.88,660.96,0.279]
[1746865229433,0.24290191,661.87,660.96,0.279]
[1746865229732,0.24290191,661.94,660.96,0.279]
[1746865230028,0.26316785,661.86,660.96,0.279]
[1746865230332,0.24290191,661.85,660.96,0.279]
[1746865230835,0.24290191,661.94,660.96,0.279]
[1746865231134,0.24290191,661.93,660.96,0.279]
[1746865231429,0.50606976,661.93,660.96,0.279]
[1746865231634,0.24290191,661.92,660.96,0.279]
[1746865231834,0.24290191,661.91,660.96,0.279]
[1746865232335,0.24290191,661.9,660.96,0.279]
[1746865232531,0.24290191,661.89,660.96,0.279]
[1746865232930,0.24290191,661.88,660.96,0.279]
[1746865233337,0.24290191,661.92,660.96,0.279]
[1746865233635,0.24290191,661.91,660.96,0.279]
[1746865233936,0.24290191,661.9,660.96,0.279]
[1746865234335,0.24290191,661.89,660.96,0.279]
[1746865234639,0.24290191,661.94,660.96,0.279]
[1746865234838,0.26316785,661.88,660.96,0.279]
[1746865235040,0.24290191,661.87,660.96,0.279]
[1746865240745,0.24290191,661.94,660.96,0.279]
[1746865241047,0.26318775,661.86,660.96,0.279]
[1746865241548,0.24290191,661.85,660.96,0.279]
[1746865241746,0.24290191,661.94,660.96,0.279]
[1746865242649,0.2631977,661.93,660.96,0.279]
[1746865243047,0.24290191,661.92,660.96,0.279]
[1746865243747,0.24290191,661.94,660.96,0.279]
[1746865243948,0.26318775,661.91,660.96,0.279]
[1746865244449,0.24290191,661.9,660.96,0.279]
[1746865249951,0.24290191,661.94,660.96,0.279]
[1746865250751,0.26316386,661.93,660.96,0.279]
[1746865251352,0.24290191,661.92,660.96,0.279]
[1746865255056,0.26316386,661.93,660.96,0.279]
[1746865255355,0.30213762,661.95,660.96,0.279]
[1746865255653,0.24308704,661.92,660.96,0.279]
[1746865255854,0.24308704,661.94,660.96,0.279]
[1746865256054,0.50624891,661.94,660.96,0.279]
[1746865256255,0.24308704,661.93,660.96,0.279]
[1746865256655,0.24308704,661.92,660.96,0.279]
[1746865257054,0.24308704,661.91,660.96,0.279]
[1746865257858,0.24308704,661.9,660.96,0.279]
[1746865258261,0.24308704,661.93,660.96,0.279]
[1746865258758,1.94982913,661.9,660.96,0.279]
[1746865259165,0.24308704,661.89,660.96,0.279]
[1746865261965,0.24308704,661.93,660.96,0.279]
[1746865262566,0.24308704,661.93,660.97,0.379]
[1746865263666,2.212991,661.94,660.97,0.379]
[1746865263965,0.26316187,661.94,660.97,0.379]
[1746865264265,0.24317334,661.93,660.97,0.379]
[1746865264865,0.24317334,661.94,660.97,0.379]
[1746865265669,0.2631181,661.93,660.97,0.379]
[1746865266768,0.2631181,661.93,660.98,0.377]
[1746865266962,0.24317334,661.92,660.98,0.377]
[1746865267669,0.24317334,661.94,660.98,0.377]
[1746865268670,0.26310915,661.93,660.98,0.377]
[1746865269170,0.24317334,661.92,660.98,0.377]
[1746865270274,0.26310915,661.93,660.98,0.377]
[1746865270466,0.30213762,661.95,660.98,0.377]
[1746865270669,0.24326465,661.92,660.98,0.377]
[1746865270872,0.50636485,661.94,660.98,0.377]
[1746865271171,0.24326465,661.93,660.98,0.377]
[1746865273672,0.24326465,661.94,660.98,0.377]
[1746865273973,0.30213762,661.95,660.98,0.377]
[1746865274275,0.2433075,661.94,660.98,0.377]
[1746865274875,0.26311512,661.93,660.98,0.377]
[1746865275072,0.2433075,661.92,660.98,0.377]
[1746865276673,0.2433075,661.94,660.98,0.377]
[1746865276874,0.26311512,661.91,660.98,0.377]
[1746865277174,0.2433075,661.9,660.98,0.377]
[1746865279677,0.2433075,661.94,660.98,0.377]
[1746865279877,0.26312506,661.89,660.98,0.377]
[1746865280178,0.2433075,661.88,660.98,0.377]
[1746865282776,0.2433075,661.94,660.98,0.377]
[1746865283076,0.2631181,661.87,660.98,0.377]
[1746865283476,0.2433075,661.86,660.98,0.377]
[1746865284172,0.2433075,661.86,660.99,0.402]
[1746865285570,0.2433075,662.99,660.99,0.402]
[1746865285773,0.26300972,661.85,660.99,0.402]
[1746865285972,0.2433075,662.98,660.99,0.402]
[1746865286276,0.2433075,662.97,660.99,0.402]
[1746865286471,0.2433075,662.96,660.99,0.402]
[1746865286773,0.2433075,662.95,660.99,0.402]
[1746865286978,0.2433075,662.94,660.99,0.402]
[1746865287381,0.2433075,662.93,660.99,0.402]
[1746865287777,0.26300972,662.96,660.99,0.402]
[1746865287973,0.24324563,662.95,660.99,0.402]
[1746865288374,0.24324563,662.94,660.99,0.402]
[1746865288677,0.24324563,662.93,660.99,0.402]
[1746865288976,0.24324563,662.92,660.99,0.402]
[1746865289174,0.24324563,662.91,660.99,0.402]
[1746865289376,0.24324563,662.9,661.0,0.267]
[1746865289578,0.24324563,662.89,661.0,0.267]
[1746865289775,0.24324563,662.88,661.0,0.267]
[1746865290179,0.24324563,662.87,661.0,0.267]
[1746865290576,0.24324563,662.86,661.0,0.267]
[1746865290877,0.24324563,662.85,661.0,0.267]
[1746865291080,1.94982913,662.78,661.0,0.267]
[1746865291581,0.24324563,662.77,661.0,0.267]
[1746865291880,0.24324563,662.76,661.0,0.267]
[1746865292082,0.24324563,662.75,661.0,0.267]
[1746865292282,0.24324563,662.74,661.0,0.267]
[1746865292482,0.24324563,662.73,661.0,0.267]
[1746865292678,0.24324563,662.72,661.0,0.267]
[1746865292984,0.24324563,662.71,661.0,0.267]
[1746865293181,0.24324563,662.7,661.0,0.267]
[1746865293384,1.94982913,662.41,661.0,0.267]
[1746865293581,0.24324563,662.4,661.0,0.267]
[1746865293784,0.24324563,662.39,661.0,0.267]
[1746865293986,0.24324563,662.38,661.0,0.267]
[1746865294285,0.24324563,662.37,661.0,0.267]
[1746865294478,0.24324563,662.36,661.0,0.267]
[1746865294682,0.24324563,662.35,661.0,0.267]
[1746865294879,0.24324563,662.34,661.0,0.267]
[1746865295186,0.24324563,662.33,661.0,0.267]
[1746865295380,0.24324563,662.32,661.0,0.267]
[1746865295580,0.24324563,662.31,661.0,0.267]
[1746865295785,0.24324563,662.3,661.0,0.267]
[1746865295986,1.94982913,662.26,661.0,0.267]
[1746865296185,0.24324563,662.25,661.0,0.267]
[1746865296381,0.24324563,662.24,661.0,0.267]
[1746865296585,0.24324563,662.23,661.0,0.267]
[1746865296780,0.24324563,662.22,661.0,0.267]
[1746865297185,0.24324563,662.21,661.0,0.267]
[1746865297585,0.24324563,662.2,661.0,0.267]
[1746865297782,0.24324563,662.19,661.0,0.267]
[1746865297986,0.24324563,662.18,661.0,0.267]
[1746865298187,0.24324563,662.19,661.0,0.267]
[1746865299284,0.26310418,662.2,661.0,0.267]
[1746865299486,0.24334802,662.18,661.0,0.267]
[1746865299682,0.24334802,662.19,661.0,0.267]
[1746865299887,0.24334802,662.17,661.0,0.267]
[1746865300087,0.24334802,662.18,661.0,0.267]
[1746865300387,0.24334802,662.17,661.0,0.267]
[1746865300582,0.24334802,662.27,661.0,0.267]
[1746865300787,0.26310219,662.17,661.0,0.267]
[1746865300988,0.24334802,662.16,661.0,0.267]
[1746865301186,0.30205092,662.14,661.0,0.267]
[1746865301386,0.24334802,662.13,661.0,0.267]
[1746865301586,0.24334802,662.12,661.0,0.267]
[1746865301783,0.24334802,662.11,661.0,0.267]
[1746865301986,0.24334802,662.1,661.0,0.267]
[1746865302182,0.24334802,662.09,661.0,0.267]
[1746865302388,0.24334802,662.08,661.0,0.267]
[1746865302590,0.24334802,662.13,661.0,0.267]
[1746865303585,1.94982913,662.1,661.0,0.267]
[1746865303789,0.24334802,662.09,661.0,0.267]
[1746865304295,0.24334802,662.09,660.99,0.402]
[1746865304795,0.26325445,662.08,660.99,0.402]
[1746865305691,0.24334802,662.07,660.99,0.402]
[1746865306292,0.24334802,662.07,661.0,0.299]
[1746865307893,0.24334802,662.06,661.0,0.299]
[1746865308192,0.24334802,662.05,661.0,0.299]
[1746865308594,0.24334802,662.04,661.0,0.299]
[1746865309189,0.24334802,662.03,661.0,0.299]
[1746865309691,0.24334802,662.02,661.0,0.299]
[1746865309894,0.24334802,662.01,661.0,0.299]
[1746865310195,0.30205092,662.14,661.0,0.299]
[1746865310496,0.24343019,662.13,661.0,0.299]
[1746865310694,0.30206461,662.11,661.0,0.299]
[1746865310892,0.24343019,662.1,661.0,0.299]
[1746865311099,0.24343019,662.09,661.0,0.299]
[1746865311395,0.24343019,662.08,661.0,0.299]
[1746865311595,0.24343019,662.07,661.0,0.299]
[1746865312195,0.24343019,662.06,661.0,0.299]
[1746865312796,0.50657316,662.05,661.0,0.299]
[1746865313497,0.24343019,662.04,661.0,0.299]
[1746865313795,1.94982913,661.96,661.0,0.299]
[1746865314298,0.24343019,661.95,661.0,0.299]
[1746865314902,0.24343019,661.94,661.0,0.299]
[1746865315403,0.24343019,661.93,661.0,0.299]
[1746865315702,0.26316785,661.92,661.0,0.299]
[1746865316002,0.50659804,661.92,661.0,0.299]
[1746865316397,0.24343019,661.91,661.0,0.299]
[1746865316899,0.24343019,661.9,661.0,0.299]
[1746865317096,0.26316785,661.92,661.0,0.299]
[1746865317497,0.24335187,661.91,661.0,0.299]
[1746865317703,0.30216501,661.89,661.0,0.299]
[1746865318201,0.24335187,661.88,661.0,0.299]
[1746865318703,0.50661627,661.87,661.0,0.299]
[1746865319106,0.50661627,661.87,661.01,0.35]
[1746865319300,0.24335187,661.86,661.01,0.35]
[1746865319601,0.24335187,661.85,661.01,0.35]
[1746865319904,0.24335187,661.84,661.01,0.35]
[1746865320200,0.24335187,661.86,661.01,0.35]
[1746865321598,0.30218783,661.84,661.01,0.35]
[1746865322099,0.24335187,661.83,661.01,0.35]
[1746865324903,0.26317083,661.82,661.01,0.35]
[1746865325407,0.24335187,661.81,661.01,0.35]
[1746865325607,0.3022061,661.8,661.01,0.35]
[1746865326200,0.24335187,661.79,661.01,0.35]
[1746865326908,0.30221523,661.78,661.01,0.35]
[1746865327407,0.24335187,661.77,661.01,0.35]
[1746865327601,0.30222437,661.76,661.01,0.35]
[1746865327906,0.24335187,661.75,661.01,0.35]
[1746865328107,0.3022335,661.74,661.01,0.35]
[1746865328408,0.24335187,661.73,661.01,0.35]
[1746865328707,0.30224264,661.72,661.01,0.35]
[1746865329008,0.24335187,661.71,661.01,0.35]
[1746865331108,0.30225177,661.7,661.01,0.35]
[1746865331411,0.24335187,661.69,661.01,0.35]
[1746865332311,0.30226091,661.68,661.01,0.35]
[1746865332810,0.24335187,661.67,661.01,0.35]
[1746865333010,0.30227004,661.66,661.01,0.35]
[1746865333506,0.24335187,661.65,661.01,0.35]
[1746865333706,0.30227918,661.64,661.01,0.35]
[1746865334214,0.24335187,661.63,661.01,0.35]
[1746865334406,0.30228832,661.62,661.01,0.35]
[1746865334815,0.24335187,661.61,661.01,0.35]
[1746865335009,0.30229746,661.6,661.01,0.35]
[1746865335212,0.24335187,661.59,661.01,0.35]
[1746865335411,0.30230659,661.58,661.01,0.35]
[1746865335814,0.24328662,661.57,661.01,0.35]
[1746865336014,0.30231573,661.56,661.01,0.35]
[1746865336814,0.56550845,661.56,661.01,0.35]
[1746865337010,0.24328662,661.55,661.01,0.35]
[1746865337214,0.30232487,661.54,661.01,0.35]
[1746865337813,0.24328662,661.53,661.01,0.35]
[1746865338012,0.30233401,661.52,661.01,0.35]
[1746865338917,0.24329952,661.51,661.01,0.35]
[1746865342315,0.30234315,661.5,661.01,0.35]
[1746865342616,0.24329952,661.49,661.01,0.35]
[1746865342818,0.3023523,661.48,661.01,0.35]
[1746865352528,0.3023523,661.48,661.02,0.318]
[1746865365631,0.3023523,661.48,661.03,0.405]
[1746865378343,0.3023523,661.48,661.04,0.365]
[1746865405071,0.3023523,661.48,661.05,0.9493466]
[1746865405264,0.3023523,661.48,661.06,0.9493466]
[1746865405469,0.3023523,661.48,661.04,0.365]
[1746865405668,0.3023523,661.48,661.05,0.94950929]
[1746865405868,0.3023523,661.48,661.06,0.94950929]
[1746865406065,0.3023523,661.48,661.07,0.94950929]
[1746865406268,0.3023523,661.48,661.08,0.94950929]
[1746865406564,0.3023523,661.48,661.04,0.365]
[1746865406765,0.3023523,661.48,661.05,0.95036796]
[1746865406969,0.3023523,661.48,661.06,0.95036796]
[1746865407167,0.3023523,661.48,661.07,0.95036796]
[1746865407473,0.3023523,661.48,661.08,0.95036796]
[1746865407772,0.3023523,661.48,661.04,0.365]
[1746865408073,0.3023523,661.48,661.05,0.95050917]
[1746865408265,0.3023523,661.48,661.06,0.95050917]
[1746865408465,0.3023523,661.48,661.07,0.95050917]
[1746865408669,0.3023523,661.48,661.08,0.95050917]
[1746865408869,0.3023523,661.48,661.04,0.365]
[1746865409074,0.3023523,661.48,661.05,0.95038723]
[1746865409271,0.3023523,661.48,661.06,0.95038723]
[1746865409470,0.3023523,661.48,661.07,0.95038723]
[1746865409671,0.3023523,661.48,661.04,0.365]
[1746865409868,0.3023523,661.48,661.05,0.95027665]
[1746865410067,0.3023523,661.48,661.06,0.95027665]
[1746865410371,0.3023523,661.48,661.07,0.95018732]
[1746865410572,0.3023523,661.48,661.04,0.365]
[1746865410772,0.3023523,661.48,661.05,0.95018716]
[1746865410973,0.3023523,661.48,661.06,0.95018716]
[1746865411168,0.3023523,661.48,661.07,0.95018716]
[1746865411370,0.3023523,661.48,661.03,0.405]
[1746865411570,0.3023523,661.48,661.04,0.95008725]
[1746865411775,0.3023523,661.48,661.05,0.95008725]
[1746865411976,0.3023523,661.48,661.06,0.95008725]
[1746865412175,0.3023523,661.48,661.03,0.405]
[1746865412376,0.3023523,661.48,661.04,0.9500147]
[1746865412577,0.3023523,661.48,661.05,0.9500147]
[1746865412775,0.3023523,661.48,661.06,0.9500147]
[1746865412973,0.3023523,661.48,661.07,0.9500147]
[1746865413173,0.3023523,661.48,660.74,0.26290243]
[1746865413473,0.3023523,661.48,660.75,0.94999489]
[1746865413678,0.3023523,661.48,660.76,0.94999489]
[1746865413974,0.3023523,661.48,660.77,1.29999489]
[1746865414178,0.3023523,661.48,660.78,0.94999489]
[1746865414373,0.3023523,661.48,660.79,0.94999489]
[1746865414583,0.3023523,661.48,660.8,0.94999489]
[1746865414779,0.3023523,661.48,660.81,0.94999489]
[1746865415078,0.3023523,661.48,660.82,0.94999489]
[1746865415278,0.3023523,661.48,660.83,0.94999489]
[1746865415478,0.3023523,661.48,660.84,0.94999489]
[1746865415677,0.3023523,661.48,660.85,0.94999489]
[1746865415878,0.3023523,661.48,660.86,0.94999489]
[1746865416180,0.3023523,661.48,660.87,1.22779644]
[1746865416379,0.3023523,661.48,660.88,1.22779644]
[1746865416576,0.3023523,661.48,660.89,0.94999489]
[1746865416777,0.3023523,661.48,660.9,0.94999489]
[1746865416972,0.3023523,661.48,660.91,0.94999489]
[1746865417176,0.3023523,661.48,660.92,0.94999489]
[1746865417374,0.3023523,661.48,660.93,0.94999489]
[1746865417579,0.3023523,661.48,660.94,0.94999489]
[1746865417778,0.3023523,661.48,660.95,0.94999489]
[1746865418078,0.3023523,661.48,660.96,0.94999489]
[1746865418278,0.3023523,661.48,660.97,0.94999489]
[1746865418580,0.3023523,661.48,660.98,0.94999489]
[1746865418779,0.3023523,661.48,660.99,0.94999489]
[1746865418979,0.3023523,661.48,661.0,0.94999489]
[1746865419181,0.3023523,661.48,661.01,0.94999489]
[1746865419377,0.3023523,661.48,661.02,0.94999489]
[1746865419578,0.3023523,661.48,661.03,0.94999489]
[1746865419778,0.3023523,661.48,661.04,0.94999489]
[1746865419979,0.3023523,661.48,661.05,0.94999489]
[1746865420184,0.3023523,661.48,660.86,0.327]
[1746865420375,0.3023523,661.48,660.87,0.95045689]
[1746865420576,0.3023523,661.48,660.88,0.95045689]
[1746865420880,0.3023523,661.48,660.89,0.95048683]
[1746865421180,0.3023523,661.48,660.9,0.95048683]
[1746865421380,0.3023523,661.48,660.86,0.327]
[1746865421381,0.3023523,661.48,660.91,0.95048683]